bitfinex/quotes_SOLUSD_20251124
["timestamp","ask_amount","ask_price","bid_price","bid_amount"]
[1763992204721,3.17917231,130.18,130.15,0.61]
[1763992204922,3.84917231,130.18,130.15,0.2]
[1763992205322,0.67,130.21,130.16,3.58917231]
[1763992205619,3.84917231,130.21,130.16,3.58917231]
[1763992205802,20.15803631,130.21,130.16,3.58917231]
[1763992205999,0.67,130.2,130.16,3.58917231]
[1763992206405,0.67,130.2,130.16,3.17917231]
[1763992206611,0.67,130.2,130.16,3.58917231]
[1763992208116,0.67,130.2,130.16,4.88917231]
[1763992208340,3.84917231,130.2,130.16,1.71]
[1763992208925,3.17917231,130.19,130.16,1.3]
[1763992209118,3.84917231,130.19,130.16,1.3]
[1763992209719,3.17917231,130.19,130.16,1.71]
[1763992210016,3.84917231,130.2,130.16,1.71]
[1763992210614,3.84917231,130.2,130.16,0.41]
[1763992210804,0.67,130.2,130.16,3.17917231]
[1763992211000,0.67,130.21,130.17,3.58917231]
[1763992211400,3.84917231,130.21,130.17,0.41]
[1763992211826,0.67,130.21,130.17,0.41]
[1763992212124,0.67,130.2,130.17,0.41]
[1763992213028,3.84917231,130.21,130.17,0.41]
[1763992213835,0.67,130.2,130.17,0.41]
[1763992218648,0.67,130.23,130.19,3.17917231]
[1763992218949,3.84917231,130.24,130.19,4.47917231]
[1763992219160,0.67,130.24,130.2,7.13133388]
[1763992220583,0.67,130.24,130.21,0.41]
[1763992220881,0.67,130.26,130.21,3.58917231]
[1763992221081,3.17917231,130.27,130.22,3.17917231]
[1763992221671,3.17917231,130.25,130.2,6.72133388]
[1763992221879,0.67,130.26,130.16,0.41]
[1763992221880,3.17917231,130.21,130.16,0.41]
[1763992222045,3.17917231,130.2,130.17,3.4]
[1763992222452,0.72,130.19,130.17,3.4]
[1763992222668,3.17917231,130.18,130.15,0.2]
[1763992222870,3.17917231,130.18,130.15,4.01]
[1763992223348,3.89917231,130.18,130.15,4.01]
[1763992223863,0.72,130.18,130.15,4.01]
[1763992224957,3.89917231,130.18,130.15,3.6]
[1763992225462,0.72,130.17,130.15,3.6]
[1763992225853,0.72,130.17,130.15,0.2]
[1763992229161,3.89917231,130.17,130.15,0.2]
[1763992229685,0.72,130.17,130.15,0.2]
[1763992229887,0.72,130.16,130.15,0.2]
[1763992234463,0.72,130.18,130.15,0.2]
[1763992234674,0.72,130.19,130.15,3.78917231]
[1763992234879,3.17917231,130.2,130.15,5.08917231]
[1763992235082,0.72,130.19,130.15,5.08917231]
[1763992235507,3.89917231,130.19,130.15,4.67917231]
[1763992235881,0.72,130.18,130.15,4.67917231]
[1763992237277,0.72,130.18,130.15,1.5]
[1763992238093,3.89917231,130.18,130.15,1.5]
[1763992238787,0.72,130.18,130.15,1.5]
[1763992239493,3.89917231,130.18,130.15,1.5]
[1763992240002,0.72,130.17,130.15,1.5]
[1763992240393,3.89917231,130.17,130.15,1.5]
[1763992240788,0.72,130.16,130.15,0.2]
[1763992241116,3.17917231,130.16,130.15,0.2]
[1763992241282,3.89917231,130.16,130.15,0.2]
[1763992243690,0.72,130.16,130.15,0.2]
[1763992243993,3.89917231,130.16,130.15,0.2]
[1763992244993,0.72,130.16,130.15,0.2]
[1763992245194,3.89917231,130.16,130.15,0.2]
[1763992245810,20.20803631,130.16,130.15,0.2]
[1763992258117,17.028864,130.16,130.15,0.2]
[1763992258299,20.20803631,130.16,130.15,0.2]
[1763992260126,4.0181377,130.19,130.15,0.2]
[1763992260305,16.308864,130.17,130.15,0.2]
[1763992260706,0.69,130.16,130.15,0.2]
[1763992260907,3.86917231,130.16,130.15,0.2]
[1763992262597,5.66100443,130.16,130.15,0.2]
[1763992281029,8.37100443,130.17,130.15,0.2]
[1763992281354,4.97100443,130.17,130.15,0.2]
[1763992281530,5.66100443,130.17,130.15,0.2]
[1763992284329,4.97100443,130.16,130.15,0.2]
[1763992284527,5.63100443,130.16,130.15,0.2]
[1763992285842,24.67986843,130.17,130.15,0.61]
[1763992286046,16.308864,130.17,130.15,0.61]
[1763992286644,16.308864,130.17,130.15,0.2]
[1763992286950,21.93986843,130.17,130.15,0.2]
[1763992287334,0.66,130.16,130.15,0.2]
[1763992287650,21.27986843,130.17,130.15,0.2]
[1763992287651,21.93986843,130.17,130.15,0.2]
[1763992289240,21.27986843,130.17,130.15,0.2]
[1763992289444,21.93986843,130.17,130.15,0.2]
[1763992292637,4.06,130.19,130.15,0.61]
[1763992292837,5.63100443,130.18,130.15,0.61]
[1763992295549,25.33986843,130.19,130.15,0.61]
[1763992296550,24.67986843,130.19,130.15,0.61]
[1763992296751,0.66,130.18,130.15,0.61]
[1763992297564,16.308864,130.19,130.16,5.38100443]
[1763992297738,16.308864,130.19,130.16,0.41]
[1763992297935,16.308864,130.19,130.17,0.41]
[1763992298548,16.308864,130.19,130.16,0.41]
[1763992298740,21.27986843,130.19,130.16,0.41]
[1763992302172,4.97100443,130.19,130.16,0.41]
[1763992302545,5.63100443,130.19,130.16,0.41]
[1763992305594,5.63100443,130.18,130.15,1.5]
[1763992305774,4.97100443,130.16,130.15,1.5]
[1763992306076,5.63100443,130.16,130.15,0.2]
[1763992310468,4.97100443,130.17,130.15,0.61]
[1763992310667,4.97100443,130.17,130.15,0.2]
[1763992310977,5.64100443,130.17,130.15,0.2]
[1763992311348,4.97100443,130.17,130.15,0.2]
[1763992311675,0.67,130.16,130.15,0.2]
[1763992312691,5.64100443,130.16,130.15,0.2]
[1763992313287,5.07100443,130.19,130.15,5.58100443]
[1763992313500,19.708864,130.2,130.15,0.61]
[1763992313501,5.68100443,130.18,130.15,0.61]
[1763992314867,24.67986843,130.2,130.16,5.38100443]
[1763992315074,0.71,130.2,130.16,5.38100443]
[1763992315270,0.71,130.2,130.17,0.41]
[1763992315474,4.01697596,130.24,130.19,4.97100443]
[1763992315672,0.71,130.23,130.2,4.97100443]
[1763992315872,0.71,130.23,130.19,5.38100443]
[1763992316460,17.018864,130.23,130.19,5.38100443]
[1763992316665,0.71,130.23,130.19,5.38100443]
[1763992317090,17.018864,130.23,130.19,5.38100443]
[1763992317256,17.018864,130.23,130.19,4.97100443]
[1763992317763,17.018864,130.23,130.2,5.38100443]
[1763992318170,3.4,130.26,130.18,9.18338299]
[1763992318171,0.71,130.25,130.21,5.38100443]
[1763992318566,5.68100443,130.25,130.21,5.38100443]
[1763992319178,5.17557027,130.27,130.24,4.97100443]
[1763992319371,0.71,130.29,130.26,4.97100443]
[1763992319879,0.71,130.31,130.27,5.38100443]
[1763992320082,0.71,130.31,130.27,14.56670557]
[1763992320260,5.68100443,130.31,130.27,9.18570114]
[1763992320466,4.97100443,130.3,130.27,9.18570114]
[1763992320790,0.71,130.3,130.27,9.18570114]
[1763992321005,0.71,130.3,130.27,14.15670557]
[1763992321965,0.71,130.3,130.27,14.56670557]
[1763992322161,21.98986843,130.31,130.27,14.56670557]
[1763992322581,0.71,130.3,130.27,14.15670557]
[1763992322887,0.71,130.3,130.27,9.18570114]
[1763992324277,4.97100443,130.29,130.27,9.18570114]
[1763992324689,3.884429,130.3,130.27,9.18570114]
[1763992325996,0.71,130.29,130.27,9.18570114]
[1763992326174,3.884429,130.29,130.24,3.584429]
[1763992326380,3.884429,130.29,130.25,12.77013014]
[1763992326786,0.71,130.28,130.25,12.77013014]
[1763992327176,0.71,130.28,130.25,9.18570114]
[1763992327386,0.71,130.28,130.24,7.874429]
[1763992327580,0.71,130.28,130.24,8.284429]
[1763992328388,16.308864,130.31,130.25,3.584429]
[1763992328583,3.174429,130.29,130.25,3.584429]
[1763992328791,20.193293,130.31,130.26,3.584429]
[1763992329090,0.71,130.3,130.26,3.584429]
[1763992329881,0.71,130.3,130.26,4.884429]
[1763992330086,0.71,130.3,130.26,1.3]
[1763992330294,0.71,130.3,130.27,3.174429]
[1763992330499,0.2,130.35,130.29,3.174429]
[1763992330710,0.2,130.35,130.34,3.174429]
[1763992330925,0.2,130.35,130.34,6.574429]
[1763992331085,0.2,130.35,130.34,16.91541826]
[1763992331285,0.2,130.35,130.34,19.99009445]
[1763992331485,0.2,130.35,130.34,3.62683776]
[1763992331692,0.2,130.35,130.34,7.02683776]
[1763992331922,0.2,130.35,130.34,26.10013076]
[1763992332109,0.2,130.35,130.34,26.51013076]
[1763992333012,0.2,130.35,130.34,43.97120027]
[1763992333590,0.2,130.35,130.34,36.29895845]
[1763992333888,0.2,130.35,130.34,43.97120027]
[1763992334203,0.2,130.35,130.34,47.14562927]
[1763992335486,0.2,130.35,130.34,49.14562926]
[1763992336900,0.2,130.35,130.34,3.21683776]
[1763992337106,0.2,130.35,130.34,6.47467619]
[1763992337491,0.2,130.35,130.34,3.4]
[1763992338429,0.2,130.35,130.34,6.574429]
[1763992338916,0.2,130.35,130.34,3.4]
[1763992339803,0.91,130.35,130.33,3.174429]
[1763992340004,4.084429,130.35,130.31,3.174429]
[1763992340213,0.71,130.34,130.32,3.4]
[1763992341306,0.71,130.34,130.3,19.683293]
[1763992341507,0.71,130.34,130.31,3.4]
[1763992341508,3.884429,130.34,130.31,3.4]
[1763992341711,0.71,130.34,130.31,6.574429]
[1763992342211,0.2,130.35,130.31,6.574429]
[1763992342411,0.2,130.35,130.34,22.79988357]
[1763992342602,0.2,130.35,130.34,35.98871126]
[1763992342805,0.2,130.35,130.34,47.92199825]
[1763992343001,0.2,130.38,130.36,0.14216157]
[1763992343212,0.2,130.38,130.37,19.85102557]
[1763992343419,0.2,130.38,130.37,22.883293]
[1763992343818,0.2,130.38,130.37,40.69475859]
[1763992344605,0.2,130.38,130.37,45.06191349]
[1763992347125,0.2,130.38,130.37,37.52032959]
[1763992347313,0.2,130.38,130.37,35.2730858]
[1763992347828,0.2,130.38,130.37,40.41410076]
[1763992348522,0.2,130.38,130.37,48.90292845]
[1763992349025,0.2,130.38,130.37,50.90292844]
[1763992349228,0.2,130.38,130.37,41.11410075]
[1763992349403,0.2,130.38,130.37,50.90292844]
[1763992350515,0.2,130.38,130.37,22.9249929]
[1763992350704,0.2,130.38,130.37,30.4665768]
[1763992351709,0.2,130.38,130.37,14.14444366]
[1763992351916,0.2,130.38,130.37,21.68602756]
[1763992352137,0.2,130.38,130.37,21.82818913]
[1763992352907,0.92,130.38,130.37,6.47396733]
[1763992353108,0.92,130.38,130.37,10.9415839]
[1763992353707,0.2,130.38,130.37,10.9415839]
[1763992353903,0.92,130.38,130.37,10.9415839]
[1763992354108,0.2,130.38,130.37,10.9415839]
[1763992359317,0.2,130.38,130.36,0.14216157]
[1763992359517,0.2,130.38,130.37,11.08374547]
[1763992361124,0.92,130.38,130.36,7.6415839]
[1763992361336,0.92,130.38,130.37,3.4]
[1763992361659,0.92,130.38,130.37,10.9415839]
[1763992362728,0.92,130.38,130.37,3.4]
[1763992362947,0.92,130.38,130.37,10.9415839]
[1763992363550,0.92,130.38,130.36,7.5415839]
[1763992363748,0.72,130.37,130.35,4.7]
[1763992364071,0.72,130.37,130.35,3.4]
[1763992364219,8.2615839,130.37,130.35,3.4]
[1763992364425,0.72,130.37,130.35,3.4]
[1763992364643,0.72,130.36,130.35,3.4]
[1763992379361,0.72,130.36,130.31,4.47034417]
[1763992379362,3.89034417,130.36,130.31,4.47034417]
[1763992379562,3.17034417,130.35,130.31,4.47034417]
[1763992379877,3.84034417,130.35,130.32,3.4]
[1763992380076,0.67,130.34,130.32,3.4]
[1763992380980,3.17034417,130.33,130.28,3.17034417]
[1763992381151,3.17034417,130.33,130.26,3.4]
[1763992381152,3.17034417,130.29,130.26,3.4]
[1763992381691,0.67,130.28,130.24,3.17034417]
[1763992381857,3.84034417,130.28,130.25,3.4]
[1763992382278,3.17034417,130.26,130.21,3.37034417]
[1763992382560,3.17034417,130.26,130.22,6.57034417]
[1763992382785,0.67,130.25,130.22,6.57034417]
[1763992382983,0.67,130.25,130.23,3.17034417]
[1763992383154,0.67,130.25,130.22,6.57034417]
[1763992386710,0.67,130.25,130.22,8.36205083]
[1763992387684,5.63205083,130.25,130.21,6.46205083]
[1763992387904,5.63205083,130.25,130.22,3.4]
[1763992388214,0.67,130.24,130.22,3.4]
[1763992388796,0.67,130.24,130.21,6.46205083]
[1763992389002,4.96205083,130.22,130.21,0.2]
[1763992389209,5.63205083,130.22,130.21,0.2]
[1763992390616,15.42087852,130.22,130.2,0.2]
[1763992390919,9.78882769,130.2,130.15,0.2]
[1763992391212,4.96205083,130.17,130.15,0.2]
[1763992391596,5.63205083,130.16,130.12,7.61084151]
[1763992391789,4.96205083,130.15,130.12,4.21084151]
[1763992391990,5.63205083,130.15,130.12,4.21084151]
[1763992392188,0.67,130.14,130.12,0.2]
[1763992392406,0.67,130.14,130.12,5.16205083]
[1763992392604,16.308864,130.17,130.13,11.86618996]
[1763992392605,16.978864,130.17,130.13,11.86618996]
[1763992392792,0.67,130.16,130.14,11.86618996]
[1763992392997,0.67,130.16,130.12,0.89]
[1763992392998,0.67,130.16,130.12,0.2]
[1763992393204,0.67,130.16,130.13,11.86618996]
[1763992396408,0.67,130.16,130.14,11.86618996]
[1763992396610,0.67,130.17,130.14,11.86618996]
[1763992397218,0.67,130.17,130.12,8.57521311]
[1763992397409,0.67,130.17,130.14,11.86618996]
[1763992398817,0.67,130.17,130.14,3.4]
[1763992401024,0.67,130.17,130.14,4.7]
[1763992401425,0.67,130.17,130.14,16.56618996]
[1763992401626,0.67,130.17,130.14,4.7]
[1763992403422,0.67,130.17,130.14,17.26618996]
[1763992403742,0.67,130.2,130.16,11.86618996]
[1763992403947,0.67,130.2,130.17,11.86618996]
[1763992404148,0.67,130.2,130.17,15.26618996]
[1763992404316,0.67,130.2,130.17,16.56618996]
[1763992405336,0.67,130.2,130.18,11.86618996]
[1763992406729,11.86618996,130.22,130.18,11.86618996]
[1763992407035,0.67,130.21,130.18,11.86618996]
[1763992408848,0.67,130.21,130.18,15.26618996]
[1763992409420,0.67,130.21,130.18,3.4]
[1763992410829,12.53618996,130.21,130.17,12.56618996]
[1763992411032,12.53618996,130.21,130.18,3.4]
[1763992411250,0.67,130.2,130.18,3.4]
[1763992414265,0.67,130.2,130.17,4.9662267]
[1763992414427,0.67,130.2,130.18,3.4]
[1763992420365,0.67,130.2,130.17,6.2662267]
[1763992420566,0.67,130.2,130.17,10.3662267]
[1763992421062,4.9662267,130.19,130.17,1.3]
[1763992421264,4.9662267,130.18,130.14,5.6662267]
[1763992421434,4.9662267,130.18,130.15,3.4]
[1763992421634,0.67,130.17,130.15,3.4]
[1763992422067,0.67,130.19,130.16,0.7]
[1763992422437,0.67,130.19,130.15,8.3662267]
[1763992422632,0.67,130.19,130.15,9.0662267]
[1763992423037,16.308864,130.23,130.16,5.6662267]
[1763992423243,0.67,130.19,130.15,8.3662267]
[1763992423741,5.6362267,130.19,130.15,3.4]
[1763992424245,0.67,130.18,130.15,3.4]
[1763992425135,0.67,130.18,130.15,7.8662267]
[1763992425741,0.67,130.18,130.15,8.5662267]
[1763992426140,0.67,130.19,130.16,4.9662267]
[1763992426366,0.67,130.19,130.16,5.6662267]
[1763992426569,0.67,130.21,130.17,5.6662267]
[1763992427062,0.67,130.21,130.18,3.4]
[1763992427937,0.67,130.21,130.18,9.0662267]
[1763992428158,4.9662267,130.23,130.18,9.0662267]
[1763992428363,0.67,130.21,130.18,8.3662267]
[1763992428571,0.67,130.21,130.18,16.74786731]
[1763992428739,0.67,130.21,130.18,8.3662267]
[1763992429444,0.67,130.23,130.2,4.9662267]
[1763992429646,0.67,130.22,130.2,4.9662267]
[1763992429844,0.67,130.22,130.19,5.6662267]
[1763992430165,0.67,130.23,130.2,4.9662267]
[1763992430761,4.9662267,130.24,130.2,4.9662267]
[1763992430762,0.67,130.24,130.21,8.3662267]
[1763992430954,0.67,130.23,130.21,3.4]
[1763992432164,0.67,130.23,130.21,2.9]
[1763992434561,5.6362267,130.23,130.18,21.2750907]
[1763992434774,5.6362267,130.23,130.19,3.4]
[1763992435086,0.71,130.22,130.19,3.4]
[1763992436375,0.71,130.22,130.19,8.3662267]
[1763992436578,5.6762267,130.22,130.19,3.4]
[1763992436786,0.71,130.22,130.19,4.06]
[1763992436945,0.71,130.22,130.19,9.0262267]
[1763992438165,0.71,130.22,130.19,8.3662267]
[1763992439660,0.71,130.22,130.19,9.6662267]
[1763992441270,0.71,130.22,130.19,10.3262267]
[1763992441472,0.71,130.22,130.19,9.6662267]
[1763992441979,0.71,130.22,130.19,6.2662267]
[1763992442161,0.71,130.22,130.2,3.4]
[1763992443363,5.6762267,130.22,130.19,4.7]
[1763992443562,0.71,130.22,130.19,4.7]
[1763992443765,0.71,130.21,130.19,4.7]
[1763992444084,0.71,130.21,130.19,9.6662267]
[1763992445189,0.71,130.22,130.19,10.3262267]
[1763992446795,0.71,130.22,130.19,8.53736888]
[1763992448163,0.71,130.22,130.19,16.21826339]
[1763992448472,0.71,130.23,130.2,3.83736888]
[1763992448668,0.71,130.23,130.2,3.17736888]
[1763992448890,0.71,130.25,130.21,3.83736888]
[1763992449070,0.71,130.25,130.22,3.4]
[1763992449389,3.88736888,130.25,130.22,3.4]
[1763992449868,3.88736888,130.24,130.21,1.3]
[1763992450058,3.88736888,130.24,130.21,4.7]
[1763992450266,3.88736888,130.23,130.21,4.7]
[1763992450761,0.71,130.23,130.21,4.7]
[1763992452377,0.71,130.26,130.22,3.83736888]
[1763992452683,0.71,130.27,130.22,0.66]
[1763992452993,0.71,130.27,130.24,3.17736888]
[1763992453175,0.71,130.27,130.25,3.4]
[1763992454672,16.308864,130.3,130.25,3.4]
[1763992454887,0.71,130.28,130.25,3.4]
[1763992455578,0.71,130.28,130.25,7.23736888]
[1763992455762,0.71,130.28,130.25,3.4]
[1763992455962,0.71,130.28,130.25,6.57736888]
[1763992456870,0.71,130.28,130.25,3.4]
[1763992457193,0.71,130.28,130.25,6.57736888]
[1763992458068,0.71,130.28,130.25,3.4]
[1763992458396,0.71,130.28,130.25,6.57736888]
[1763992459595,0.71,130.28,130.25,3.4]
[1763992460373,3.88736888,130.28,130.25,1.3]
[1763992460694,3.17736888,130.26,130.22,3.4]
[1763992460878,3.17736888,130.25,130.22,3.4]
[1763992461276,0.71,130.24,130.22,3.4]
[1763992466409,0.71,130.24,130.22,4.7]
[1763992467479,3.88736888,130.24,130.22,4.7]
[1763992467880,0.72,130.23,130.22,4.7]
[1763992468178,3.89736888,130.23,130.2,4.7]
[1763992468387,0.72,130.22,130.2,4.7]
[1763992470200,0.72,130.22,130.2,7.87736888]
[1763992470402,0.72,130.24,130.21,0.69]
[1763992470589,3.17736888,130.25,130.2,8.56736888]
[1763992470785,0.72,130.23,130.21,3.4]
[1763992472633,0.72,130.24,130.21,4.09]
[1763992472789,0.72,130.24,130.21,7.26736888]
[1763992473616,0.72,130.26,130.22,3.17736888]
[1763992473824,0.72,130.26,130.22,3.86736888]
[1763992474805,0.72,130.26,130.22,0.69]
[1763992475005,0.72,130.26,130.22,3.86736888]
[1763992475696,0.72,130.26,130.23,0.69]
[1763992476427,0.72,130.26,130.23,1.99]
[1763992480030,0.72,130.26,130.23,1.3]
[1763992480931,3.89736888,130.26,130.23,1.3]
[1763992481425,0.72,130.26,130.24,3.4]
[1763992481727,3.89736888,130.25,130.24,16.308864]
[1763992481899,3.89736888,130.25,130.23,21.008864]
[1763992482101,0.72,130.24,130.23,21.008864]
[1763992483511,5.16270958,130.3,130.23,31.25491312]
[1763992483727,0.72,130.27,130.24,16.308864]
[1763992484137,0.72,130.27,130.24,16.998864]
[1763992485122,0.72,130.27,130.24,16.308864]
[1763992485313,0.72,130.27,130.25,3.4]
[1763992492448,3.17736888,130.26,130.25,3.4]
[1763992492634,3.17736888,130.26,130.23,4.7]
[1763992492834,0.7,130.25,130.23,4.7]
[1763992494424,3.17736888,130.27,130.23,4.7]
[1763992494623,3.87736888,130.27,130.23,5.42]
[1763992494827,0.7,130.26,130.23,4.7]
[1763992498057,3.87736888,130.26,130.23,4.7]
[1763992498555,0.7,130.25,130.23,4.7]
[1763992500959,3.87736888,130.25,130.23,3.4]
[1763992501344,0.7,130.24,130.23,3.4]
[1763992501958,0.7,130.26,130.23,4.12]
[1763992502265,0.7,130.26,130.23,5.42]
[1763992506961,5.66165815,130.26,130.23,1.3]
[1763992507143,5.66165815,130.26,130.23,4.7]
[1763992507340,0.7,130.25,130.23,4.7]
[1763992507946,0.7,130.25,130.23,3.4]
[1763992508859,21.27052215,130.27,130.23,3.4]
[1763992509054,17.008864,130.27,130.23,4.12]
[1763992509252,0.7,130.26,130.23,4.12]
[1763992509480,9.78882769,130.3,130.24,0.72]
[1763992509771,0.7,130.3,130.27,4.96165815]
[1763992510075,0.7,130.29,130.27,3.4]
[1763992518654,21.27052215,130.31,130.27,3.4]
[1763992518871,0.7,130.3,130.27,3.4]
[1763992520875,5.66165815,130.3,130.27,3.4]
[1763992521248,0.7,130.29,130.27,3.4]
[1763992525083,0.72,130.31,130.27,9.03165815]
[1763992525291,16.308864,130.31,130.27,9.03165815]
[1763992525452,0.72,130.3,130.27,9.03165815]
[1763992525650,0.92,130.34,130.29,4.96165815]
[1763992525983,0.92,130.34,130.3,3.4]
[1763992526282,0.92,130.34,130.3,8.36165815]
[1763992526466,0.72,130.33,130.3,8.36165815]
[1763992527354,5.16165815,130.34,130.32,4.96165815]
[1763992527355,0.2,130.34,130.32,4.96165815]
[1763992527583,0.92,130.34,130.32,4.96165815]
[1763992527773,0.92,130.34,130.31,5.63165815]
[1763992529579,0.2,130.34,130.32,5.63165815]
[1763992529889,0.92,130.34,130.31,5.63165815]
[1763992531169,0.2,130.34,130.32,0.67]
[1763992531475,0.92,130.34,130.31,5.63165815]
[1763992531695,0.92,130.34,130.31,6.93165815]
[1763992531991,0.92,130.34,130.31,1.97]
[1763992532186,0.92,130.34,130.31,6.93165815]
[1763992532394,0.72,130.33,130.31,1.3]
[1763992533777,0.2,130.34,130.31,1.3]
[1763992533973,0.92,130.34,130.31,1.3]
[1763992535066,0.92,130.34,130.31,1.97]
[1763992535691,0.2,130.34,130.31,1.3]
[1763992535889,0.72,130.33,130.31,1.3]
[1763992536091,0.72,130.33,130.31,4.7]
[1763992536394,5.68165815,130.33,130.31,4.7]
[1763992536897,5.68165815,130.32,130.31,1.3]
[1763992537103,5.68165815,130.32,130.28,3.4]
[1763992537270,5.68165815,130.31,130.28,3.4]
[1763992537787,0.72,130.3,130.28,3.4]
[1763992539591,5.68165815,130.3,130.24,1.97]
[1763992539789,5.68165815,130.3,130.25,8.36165815]
[1763992539992,5.68165815,130.3,130.25,9.03165815]
[1763992540298,0.72,130.29,130.25,9.03165815]
[1763992540692,21.27052215,130.31,130.26,5.63165815]
[1763992540870,0.72,130.29,130.25,9.03165815]
[1763992543301,21.27052215,130.31,130.26,5.63165815]
[1763992543501,0.72,130.3,130.26,5.63165815]
[1763992544687,5.68165815,130.3,130.26,4.96165815]
[1763992545193,0.72,130.29,130.26,4.96165815]
[1763992546721,0.72,130.29,130.26,5.68165815]
[1763992548011,0.72,130.29,130.25,4.12]
[1763992548209,0.72,130.29,130.26,4.96165815]
[1763992548408,5.66165815,130.31,130.26,5.68165815]
[1763992548609,0.7,130.3,130.27,0.72]
[1763992548779,0.7,130.3,130.27,6.98165815]
[1763992550408,0.7,130.3,130.28,4.96165815]
[1763992550604,0.7,130.3,130.28,8.36165815]
[1763992551921,0.7,130.3,130.28,3.4]
[1763992554111,16.508864,130.34,130.28,9.06165815]
[1763992554303,0.7,130.31,130.28,8.36165815]
[1763992556638,5.66165815,130.31,130.28,3.4]
[1763992557133,0.7,130.3,130.28,3.4]
[1763992557310,0.7,130.31,130.28,5.66165815]
[1763992557513,0.7,130.3,130.28,4.96165815]
[1763992557922,0.7,130.32,130.28,4.96165815]
[1763992558535,0.7,130.32,130.28,5.66165815]
[1763992559017,0.7,130.32,130.28,4.96165815]
[1763992559220,0.7,130.32,130.29,0.7]
[1763992559621,0.7,130.32,130.28,4.96165815]
[1763992559822,0.7,130.32,130.28,5.66165815]
[1763992560620,0.7,130.32,130.27,4.7]
[1763992560621,5.66165815,130.32,130.27,6.96165815]
[1763992560820,4.96165815,130.31,130.27,1.3]
[1763992561057,5.66165815,130.31,130.28,3.4]
[1763992561227,0.7,130.3,130.27,1.3]
[1763992561428,0.7,130.3,130.27,4.7]
[1763992561925,5.66165815,130.3,130.27,1.3]
[1763992562349,0.7,130.29,130.27,1.3]
[1763992563357,0.7,130.29,130.27,4.7]
[1763992564354,0.7,130.29,130.27,3.4]
[1763992566667,3.17516946,130.28,130.25,3.4]
[1763992567168,0.7,130.27,130.25,3.4]
[1763992570461,0.7,130.27,130.24,3.87516946]
[1763992570665,0.7,130.27,130.25,3.4]
[1763992570956,0.7,130.27,130.24,3.87516946]
[1763992571164,0.7,130.27,130.25,3.4]
[1763992573975,0.7,130.28,130.25,4.1]
[1763992574171,0.7,130.28,130.25,3.4]
[1763992575464,0.7,130.29,130.25,6.57516946]
[1763992575669,0.7,130.28,130.25,7.27516946]
[1763992575868,0.7,130.28,130.25,3.4]
[1763992576079,0.7,130.28,130.25,7.27516946]
[1763992576384,0.7,130.28,130.25,8.57516946]
[1763992576755,0.7,130.28,130.26,3.4]
[1763992579359,0.7,130.28,130.25,1.3]
[1763992579552,0.7,130.28,130.25,4.7]
[1763992580457,3.87516946,130.28,130.25,1.3]
[1763992580658,3.17516946,130.26,130.25,1.3]
[1763992581070,0.7,130.26,130.25,1.3]
[1763992581778,0.7,130.26,130.23,4.7]
[1763992582087,0.7,130.26,130.23,5.4]
[1763992582552,0.69,130.28,130.24,3.89516946]